bitfinex-derivatives/quotes_ETHF0:USTF0_20240901
["timestamp","ask_amount","ask_price","bid_price","bid_amount"]
[1725176959441,4.56529,2486.2,2485.9,0.40232]
[1725176960038,4.56529,2486.2,2485.8,1.15903]
[1725176960234,0.40229,2486.1,2485.8,1.15903]
[1725176960434,4.163,2486.2,2485.9,0.38672055]
[1725176960640,4.163,2486.2,2486.0,3.61009]
[1725176961149,1.10757,2486.3,2486.0,3.61009]
[1725176961439,0.7053,2486.3,2486.0,3.2078]
[1725176961628,0.7053,2486.3,2486.1,0.40229]
[1725176962234,0.7053,2486.3,2486.0,3.6101]
[1725176962428,0.7053,2486.3,2486.1,0.40229]
[1725176962631,0.7053,2486.3,2486.2,0.40228]
[1725176963235,6.943,2486.6,2486.4,0.40224]
[1725176963443,1.1634,2486.7,2486.4,0.40224]
[1725176963636,1.1634,2486.7,2486.3,0.78555]
[1725176963637,0.40222,2486.6,2486.3,0.78555]
[1725176963945,0.40226,2486.3,2486.1,0.3702]
[1725176964140,7.36671289,2486.6,2486.2,0.38659859]
[1725176964444,0.40225,2486.4,2486.1,0.77249]
[1725176964647,0.40225,2486.4,2486.2,0.38663735]
[1725176964947,4.87829351,2486.3,2486.0,0.40231]
[1725176965135,0.3595,2486.2,2486.1,0.38669388]
[1725176965536,0.76178,2486.2,2486.1,0.38669388]
[1725176966748,0.76178,2486.2,2485.9,0.40232]
[1725176967046,0.40229,2486.1,2486.0,0.38672144]
[1725176967841,0.40231,2486.0,2485.8,0.40233]
[1725176968050,0.40231,2486.0,2485.9,0.38676809]
[1725176969642,0.76178,2486.2,2485.9,0.38676809]
[1725176969949,0.3595,2486.2,2486.0,3.59456809]
[1725176970154,0.3595,2486.2,2486.1,0.38676809]
[1725176970348,0.3595,2486.2,2486.0,3.2078]
[1725176970743,0.76178,2486.2,2486.0,3.2078]
[1725176971255,0.3595,2486.2,2486.0,3.2078]
[1725176972253,0.76178,2486.2,2486.0,3.2078]
[1725176972568,0.76179,2486.2,2486.0,3.2078]
[1725176972850,0.40229,2486.1,2485.8,0.40234]
[1725176973050,0.76179,2486.2,2485.9,0.38672099]
[1725176973247,0.76179,2486.2,2485.8,0.40234]
[1725176973443,0.76179,2486.2,2485.9,0.78903021]
[1725176973444,0.3595,2486.2,2485.9,0.78903021]
[1725176973749,0.76178,2486.2,2486.0,0.38671021]
[1725176973943,0.40231,2486.1,2485.8,0.40233]
[1725176974147,0.40231,2486.1,2485.9,1.00080024]
[1725176974356,0.40231,2486.1,2486.0,0.3866774]
[1725176975748,0.40234,2485.8,2485.7,3.2078]
[1725176977049,0.77893,2485.9,2485.7,3.2078]
[1725176977248,2.78,2486.1,2485.7,3.2078]
[1725176977249,0.40231,2486.0,2485.7,3.2078]
[1725176977467,0.40234,2485.8,2485.7,3.5652]
[1725176977752,3.1566,2486.1,2485.7,3.5652]
[1725176977955,0.40232,2486.0,2485.7,3.96756]
[1725176978254,0.40233,2485.9,2485.7,3.5652]
[1725176978454,0.3766,2486.1,2485.7,3.5652]
[1725176978654,0.3766,2486.1,2485.9,0.40232]
[1725176978868,0.3766,2486.1,2486.0,0.38651934]
[1725176981058,0.3766,2486.1,2486.0,0.38651803]
[1725176982860,0.3766,2486.1,2485.8,0.77423]
[1725176982861,0.77889,2486.1,2485.8,0.40233]
[1725176983067,0.77889,2486.1,2485.9,0.38657814]
[1725176983262,0.77889,2486.1,2485.8,0.40233]
[1725176983463,0.3766,2486.1,2485.9,0.38657962]
[1725176983763,0.3766,2486.1,2485.8,0.40233]
[1725176983958,0.3766,2486.1,2485.9,0.38657647]
[1725176984155,0.3766,2486.1,2485.8,0.40233]
[1725176984156,0.77889,2486.1,2485.8,0.40233]
[1725176984462,0.77889,2486.1,2485.9,0.38653259]
[1725176984770,0.77889,2486.1,2485.8,0.40233]
[1725176984959,0.77889,2486.1,2485.9,0.38653567]
[1725176985264,0.77889,2486.1,2485.8,0.40233]
[1725176985468,0.40231,2486.0,2485.9,0.38652207]
[1725176985658,0.40234,2485.8,2485.7,3.2078]
[1725176985858,0.40234,2485.8,2485.7,3.5944262]
[1725176986053,0.40234,2485.8,2485.7,3.2078]
[1725176988463,3.18234,2485.8,2485.7,3.2078]
[1725176988763,0.40236,2485.7,2485.6,0.00603136]
[1725176988958,1.52446,2485.7,2485.6,0.00603136]
[1725176989163,5.54766,2485.7,2485.6,0.00603136]
[1725176989669,9.73864482,2485.7,2485.6,0.00603136]
[1725176993962,10.74454482,2485.7,2485.6,0.00603136]
[1725176994563,0.40242,2485.3,2485.2,3.2078]
[1725176994764,3.18242,2485.3,2485.2,3.2078]
[1725176995086,11.68202409,2485.3,2485.2,3.2078]
[1725176995571,11.68202409,2485.3,2484.8,0.7669]
[1725176995572,0.40245,2485.1,2485.0,0.00603136]
[1725176995773,4.47560409,2485.3,2485.0,0.00603136]
[1725176995962,0.00603136,2485.5,2485.4,0.40241]
[1725176996159,0.00603136,2485.5,2485.4,4.42561]
[1725176996465,0.00603136,2485.5,2485.4,4.81231643]
[1725176996671,0.00603136,2485.5,2485.4,5.19601643]
[1725176997071,0.00603136,2485.5,2485.4,4.79360643]
[1725176997277,0.00603136,2485.5,2485.4,5.19601643]
[1725176997672,0.00603136,2485.5,2485.4,5.19609888]
[1725176998168,0.00603136,2485.5,2485.4,0.3837]
[1725176998470,0.00603136,2485.5,2485.4,4.80931]
[1725177000267,0.00603136,2485.5,2485.4,5.19608268]
[1725177000663,0.00603136,2485.5,2485.4,4.80931]
[1725177000864,0.00603136,2485.5,2485.4,5.19610425]
[1725177001275,0.00603136,2485.5,2485.4,4.80931]
[1725177001769,0.00603136,2485.5,2485.4,5.19614075]
[1725177001969,0.00603136,2485.5,2485.4,4.80931]
[1725177002166,0.00603136,2485.5,2485.4,5.19614827]
[1725177002971,0.00603136,2485.5,2485.4,4.80931]
[1725177003171,0.00603136,2485.5,2485.4,5.196071]
[1725177003666,0.00603136,2485.5,2485.4,5.81033907]
[1725177003868,0.00603136,2485.5,2485.4,5.196071]
[1725177004065,0.00603136,2485.5,2485.4,5.81034]
[1725177004775,0.00603136,2485.5,2485.4,5.196071]
[1725177005471,0.00603136,2485.5,2485.4,5.81045092]
[1725177005876,4.163,2486.1,2486.0,0.40231]
[1725177006177,4.9078,2486.5,2486.3,0.40226]
[1725177006477,4.9078,2486.5,2486.3,3.61006]
[1725177007472,4.9078,2486.5,2486.3,3.2078]
[1725177007774,4.9078,2486.5,2486.2,0.40830136]
[1725177008477,4.9078,2486.5,2486.3,3.61006]
[1725177008780,4.5445,2486.5,2486.3,3.61006]
[1725177009073,4.5445,2486.5,2486.3,3.2078]
[1725177010070,4.5445,2486.5,2486.3,3.61006]
[1725177010274,4.5445,2486.5,2486.3,3.2078]
[1725177010476,4.5445,2486.5,2486.3,3.61006]
[1725177011575,0.3815,2486.5,2486.3,3.61006]
[1725177012378,0.3815,2486.5,2486.3,3.2078]
[1725177013281,0.3815,2486.5,2486.3,0.40226]
[1725177016902,0.3815,2486.5,2486.2,3.61610136]
[1725177017190,0.3815,2486.5,2486.3,0.40226]
[1725177017489,0.3815,2486.5,2486.3,0.40225]
[1725177018079,0.3815,2486.5,2486.4,0.40224]
[1725177018284,0.39293136,2486.6,2486.4,0.40224]
[1725177018489,0.00603136,2486.6,2486.4,0.40224]
[1725177018886,0.00603136,2486.6,2486.5,0.40223]
[1725177019082,4.163,2487.4,2487.1,0.40213]
[1725177019382,4.163,2487.4,2486.5,3.2078]
[1725177019383,0.7541,2487.3,2487.2,3.60991]
[1725177019884,7.34503,2487.7,2487.2,3.60991]
[1725177020087,0.7541,2487.6,2487.2,3.60991]
[1725177020288,5.33453489,2487.6,2487.2,3.2078]
[1725177020478,4.16899046,2487.7,2487.4,0.40207]
[1725177020681,0.3666,2487.6,2487.4,0.40207]
[1725177021382,0.3666,2487.6,2487.5,0.40207]
[1725177021589,0.3666,2487.6,2487.3,0.7401]
[1725177021590,0.00599046,2487.7,2487.6,0.40205]
[1725177021790,0.00599046,2487.7,2487.5,0.40206]
[1725177022591,0.00599046,2487.7,2487.6,4.42205]
[1725177024275,0.00599046,2487.7,2487.6,7.62985]
[1725177025692,0.00599046,2487.7,2487.6,13.62985]
[1725177025982,2.78,2488.5,2487.6,7.2278]
[1725177026182,0.7422,2488.4,2488.0,0.40197]
[1725177026388,0.7422,2488.4,2487.9,3.2078]
[1725177026389,5.03824488,2488.4,2488.1,0.40197]
[1725177026887,5.03824488,2488.4,2487.9,3.2078]
[1725177026888,5.03824488,2488.4,2488.0,0.00603136]
[1725177027192,2.78,2488.1,2488.0,0.00603136]
[1725177027484,0.40194,2488.3,2488.0,0.00603136]
[1725177027485,2.78,2488.3,2488.0,0.00603136]
[1725177027887,4.53974172,2488.2,2488.0,0.00603136]
[1725177028184,0.40197,2488.1,2488.0,0.00603136]
[1725177028487,11.50367515,2488.1,2488.0,0.00603136]
[1725177028791,17.50367515,2488.1,2488.0,0.00603136]
[1725177030392,11.50367515,2488.1,2488.0,0.00603136]
[1725177031186,7.48447515,2488.1,2488.0,0.00603136]
[1725177031589,7.08250515,2488.1,2488.0,0.00603136]
[1725177031980,7.48447515,2488.1,2488.0,0.00603136]
[1725177032185,4.30250515,2488.1,2488.0,0.00603136]
[1725177032608,4.70447515,2488.1,2488.0,0.00603136]
[1725177033680,4.21257,2488.5,2488.1,0.40197]
[1725177033681,0.40191,2488.5,2488.1,0.40197]
[1725177033882,0.40191,2488.5,2488.0,3.61581136]
[1725177034182,4.86713781,2488.4,2488.0,3.61581136]
[1725177034583,0.3658,2488.3,2488.0,3.61581136]
[1725177034787,0.3658,2488.3,2488.1,0.40197]
[1725177035686,0.3658,2488.3,2488.0,3.61581136]
[1725177036286,4.163,2488.7,2488.2,0.40194]
[1725177036483,0.3845,2488.8,2488.3,3.60972]
[1725177036484,0.40186,2488.8,2488.3,3.60972]
[1725177036783,0.40186,2488.8,2488.4,0.7315]
[1725177037284,4.8065698,2488.7,2488.3,3.60973]
[1725177037480,0.76949,2488.6,2488.3,3.60973]
[1725177037684,1.13689,2488.6,2488.3,3.2078]
[1725177037886,0.735,2488.6,2488.3,3.2078]
[1725177038089,0.40192,2488.4,2488.3,3.2078]
[1725177038392,7.07343958,2488.5,2488.0,0.00603136]
[1725177038393,0.40197,2488.2,2488.0,0.00603136]
[1725177038692,0.40197,2488.1,2488.0,0.00603136]
[1725177039196,0.40196,2488.2,2488.0,0.00603136]
[1725177039490,0.76957,2488.1,2488.0,0.00603136]
[1725177039698,1.15577,2488.1,2488.0,0.00603136]
[1725177040386,10.42887673,2488.1,2488.0,0.00603136]
[1725177041183,9.42394673,2488.1,2488.0,0.00603136]
[1725177041984,10.42887673,2488.1,2488.0,0.00603136]
[1725177042390,0.402,2487.9,2487.8,3.2078]
[1725177042587,0.40205,2487.6,2487.5,3.2078]
[1725177042790,0.40204,2487.7,2487.5,3.2078]
[1725177042997,0.78662,2487.8,2487.5,3.2078]
[1725177043302,0.40203,2487.7,2487.5,3.2078]
[1725177043596,0.40203,2487.7,2487.5,3.5855]
[1725177045896,0.79266136,2487.8,2487.5,3.5855]
[1725177046099,0.79266136,2487.8,2487.6,0.3615]
[1725177046310,0.40203,2487.7,2487.6,0.3615]
[1725177047608,0.79266136,2487.8,2487.6,0.3615]
[1725177048004,0.40205,2487.6,2487.5,3.2078]
[1725177048498,4.42205,2487.6,2487.5,3.2078]
[1725177048698,4.78565,2487.6,2487.5,3.2078]
[1725177048899,9.14031241,2487.6,2487.5,3.2078]
[1725177051289,1.40724,2487.5,2487.4,0.00603136]
[1725177051600,0.40216,2486.9,2486.8,3.2078]
[1725177052113,9.07516864,2486.9,2486.8,3.2078]
[1725177052597,5.05436864,2486.9,2486.8,3.2078]
[1725177052800,9.07516864,2486.9,2486.8,3.2078]
[1725177053498,5.05436864,2486.9,2486.8,3.2078]
[1725177053697,9.07516864,2486.9,2486.8,3.2078]
[1725177054100,0.40219,2486.7,2486.6,0.00603136]
[1725177057089,4.65220864,2486.9,2486.6,0.00603136]
[1725177057306,0.40219,2486.8,2486.6,0.00603136]
[1725177057495,5.05436864,2486.9,2486.6,0.00603136]
[1725177057699,5.05436864,2486.9,2486.6,3.21383136]
[1725177057896,4.9043507,2487.0,2486.7,0.3783]
[1725177058095,0.40216,2487.0,2486.8,0.3714]
[1725177058493,4.38311462,2486.9,2486.8,0.3714]
[1725177059200,4.163,2487.1,2486.9,0.40215]
[1725177059502,4.163,2487.1,2486.9,3.60995]
[1725177059702,4.163,2487.1,2487.0,0.40215]
[1725177059901,1.14878,2487.5,2487.1,0.40212]
[1725177060090,0.40208,2487.5,2487.1,0.40212]
[1725177060297,0.40208,2487.4,2487.2,0.3783]
[1725177060603,0.4021,2487.3,2486.9,3.98545]
[1725177060793,0.4021,2487.3,2487.0,0.3783]
[1725177061099,4.92461136,2487.8,2486.9,3.98545]
[1725177061100,0.40215,2487.0,2486.9,3.2078]
[1725177062102,4.42295,2487.0,2486.9,3.2078]
[1725177062302,9.69871799,2487.0,2486.9,3.2078]
[1725177062895,0.40219,2486.7,2486.6,0.00603136]
[1725177063799,8.87905191,2486.7,2486.6,0.00603136]
[1725177063999,9.88454191,2486.7,2486.6,0.00603136]
[1725177065005,18.66454191,2486.7,2486.6,0.00603136]
[1725177068298,19.04484191,2486.7,2486.6,0.00603136]
[1725177069402,13.04484191,2486.7,2486.6,0.00603136]
[1725177071400,19.04484191,2486.7,2486.6,0.00603136]
[1725177071911,19.04484191,2486.7,2485.9,3.5862]
[1725177071912,0.40231,2486.0,2485.9,3.2078]
[1725177072112,1.40809,2486.0,2485.9,3.2078]
[1725177072299,2.53639,2486.0,2485.9,3.2078]
[1725177072504,10.95667903,2486.0,2485.9,3.2078]
[1725177075506,8.82259903,2486.0,2485.9,3.2078]
[1725177075706,4.39788903,2486.0,2485.9,3.2078]
[1725177075908,0.40229,2486.1,2485.9,3.2078]
[1725177076209,0.40229,2486.1,2486.0,0.376]
[1725177076408,0.00603136,2486.2,2486.0,4.3984]
[1725177076617,0.00603136,2486.2,2486.0,1.16339]
[1725177077413,0.40832136,2486.2,2486.0,0.7611]
[1725177078315,0.40229,2486.1,2486.0,0.7611]
[1725177078708,0.40229,2486.1,2486.0,4.7835]
[1725177079107,0.40832136,2486.2,2486.0,0.7611]
[1725177080903,0.40229,2486.1,2486.0,0.7611]
[1725177081109,0.40831136,2486.2,2486.0,0.7611]
[1725177082008,0.40229,2486.1,2486.0,0.7611]
[1725177082407,0.40229,2486.1,2486.0,4.7835]
[1725177082809,0.40229,2486.1,2486.0,0.376]
[1725177083916,0.00603136,2486.2,2485.9,3.5616]
[1725177084121,0.4023,2486.1,2485.9,3.5616]
[1725177084415,0.40231,2486.0,2485.9,3.5616]
[1725177084727,0.40231,2486.0,2485.9,3.2078]
[1725177085110,0.40234,2485.8,2485.7,0.00603136]
[1725177089507,0.386,2486.0,2485.7,0.00603136]
[1725177089714,4.16903136,2486.2,2486.1,0.40229]
[1725177089918,4.16903136,2486.2,2486.0,0.4023]
[1725177090116,4.16903136,2486.2,2486.0,0.7923]
[1725177092418,4.16903136,2486.2,2486.0,0.39]
[1725177092617,4.57131136,2486.2,2486.0,0.39]
[1725177093614,4.16903136,2486.2,2486.0,0.39]
[1725177093914,4.57132136,2486.2,2486.0,0.39]
[1725177094218,4.16903136,2486.2,2486.0,0.39]
[1725177094717,4.57131136,2486.2,2486.0,0.39]
[1725177094921,0.40831136,2486.2,2486.0,0.39]
[1725177095125,0.40831136,2486.2,2486.1,0.3645]
[1725177095320,0.00603136,2486.2,2486.1,0.3645]
[1725177095716,0.40831136,2486.2,2486.1,0.3645]
[1725177096112,0.00603136,2486.2,2486.1,0.3645]
[1725177096725,0.00603136,2486.2,2486.1,4.3869]
[1725177097230,0.00603136,2486.2,2486.1,10.78919]
[1725177097423,4.163,2486.7,2486.1,10.77274419]
[1725177097725,0.40219,2486.8,2486.5,3.2078]
[1725177097918,0.40219,2486.8,2486.6,0.7369]
[1725177098220,0.40217,2486.9,2486.6,0.7369]
[1725177098414,0.40820136,2486.9,2486.6,0.7369]
[1725177098614,0.40820136,2486.9,2486.6,4.7585]
[1725177100426,0.40820136,2486.9,2486.6,0.7369]
[1725177101122,0.40820136,2486.9,2486.6,4.7585]
[1725177101422,0.40820136,2486.9,2486.6,0.7369]
[1725177101628,0.40820136,2486.9,2486.6,4.7585]
[1725177101826,0.00603136,2486.9,2486.6,4.7585]
[1725177102124,0.40819136,2486.9,2486.6,4.7585]
[1725177102725,0.40819136,2486.9,2486.6,0.7369]
[1725177103324,0.40819136,2486.9,2486.6,4.7585]
[1725177103826,0.40819136,2486.9,2486.6,0.7369]
[1725177104029,0.40219,2486.8,2486.6,0.7369]
[1725177104227,2.78,2486.8,2486.5,3.2078]
[1725177104534,3.18221,2486.6,2486.5,3.2078]
[1725177104916,11.56261341,2486.6,2486.5,3.2078]
[1725177105224,7.54101341,2486.6,2486.5,3.2078]
[1725177105429,11.56261341,2486.6,2486.5,3.2078]
[1725177105735,0.40227,2486.3,2485.9,3.97454493]
[1725177105920,12.16593341,2486.6,2485.9,4.37686493]
[1725177105921,0.7401,2486.2,2485.9,4.37686493]
[1725177106720,0.7401,2486.2,2485.9,8.39926493]
[1725177106921,1.14238,2486.2,2485.9,3.97454493]
[1725177107117,1.50198,2486.2,2485.9,3.5887]
[1725177107831,0.40229,2486.1,2485.9,3.5887]
[1725177108028,0.40229,2486.1,2485.9,3.59367538]
[1725177108228,0.40229,2486.1,2485.9,3.2078]
[1725177110933,1.50199,2486.2,2485.9,3.2078]
[1725177111933,0.40229,2486.1,2485.9,3.2078]
[1725177113525,0.40229,2486.1,2485.8,0.3786]
[1725177113831,0.40229,2486.1,2486.0,3.2078]
[1725177115834,1.50198,2486.2,2486.0,3.2078]
[1725177116137,1.14238,2486.2,2486.0,3.2078]
[1725177116527,0.40229,2486.1,2486.0,3.2078]
[1725177116926,1.00536,2487.1,2486.0,7.2302]
[1725177117131,0.7722,2486.6,2486.1,0.77039]
[1725177117329,0.40223,2486.5,2486.2,0.3748]
[1725177117535,0.40223,2486.5,2486.2,1.14877]
[1725177117732,4.84329973,2486.6,2486.3,3.2078]
[1725177117936,4.5652,2486.7,2486.3,3.2078]
[1725177118126,4.163,2486.7,2486.3,3.61006]
[1725177118327,4.163,2486.7,2486.3,7.63165]
[1725177118731,4.163,2486.7,2486.4,4.42383]
[1725177118932,0.77823136,2486.9,2486.6,3.2078]
[1725177119531,3.55823136,2486.9,2486.6,3.2078]
[1725177119734,4.42689828,2486.8,2486.6,3.2078]
[1725177122046,4.42689828,2486.8,2486.4,0.3853142]
[1725177122247,4.42689828,2486.8,2486.5,3.2078]
[1725177123758,3.55823136,2486.9,2486.5,3.2078]
[1725177124060,3.55823136,2486.9,2486.6,0.3644]
[1725177124354,3.55823136,2486.9,2486.7,0.3902]
[1725177124558,0.00603136,2486.9,2486.7,0.3902]
[1725177125246,0.00603136,2486.9,2486.7,0.79239]
[1725177125754,0.00603136,2486.9,2486.8,3.2078]
[1725177126255,6.80683136,2486.9,2486.8,3.2078]
[1725177126458,11.55737362,2486.9,2486.8,3.2078]
[1725177131750,0.40219,2486.8,2486.3,3.61005]
[1725177131947,4.35441362,2486.9,2486.7,0.40219]
[1725177132154,0.00603136,2486.9,2486.8,0.3761]
[1725177133954,0.00603136,2486.9,2486.8,4.3969]
[1725177134259,0.00603136,2486.9,2486.8,0.3761]
[1725177134955,0.00603136,2486.9,2486.6,3.61001]
[1725177135164,0.00603136,2486.9,2486.7,0.3824]
[1725177136355,0.00603136,2486.9,2486.7,0.78459]
[1725177136561,0.00603136,2486.9,2486.7,0.3824]
[1725177137361,0.40820136,2486.9,2486.4,1.36163912]
[1725177137554,4.52668382,2486.8,2486.4,1.1204]
[1725177137749,4.52668382,2486.8,2486.4,1.52263]
[1725177137954,4.52668382,2486.8,2486.5,0.38532703]
[1725177138163,4.52668382,2486.8,2486.4,2.13461903]
[1725177138462,4.92886382,2486.8,2486.5,0.38532273]
[1725177138770,4.92887382,2486.8,2486.4,2.13462903]
[1725177138960,4.92887382,2486.8,2486.5,0.38533257]
[1725177139160,4.92887382,2486.8,2486.4,2.13462903]
[1725177139361,4.92887382,2486.8,2486.5,0.38532918]
[1725177139560,4.52668382,2486.8,2486.5,0.40223]
[1725177139866,0.00603136,2486.9,2486.6,0.38531012]
[1725177140164,0.00603136,2486.9,2486.5,3.61003]
[1725177140360,0.00603136,2486.9,2486.6,0.78751178]
[1725177140566,0.00603136,2486.9,2486.7,0.40219]
[1725177140868,0.00603136,2486.9,2486.6,0.4022]
[1725177141057,0.00603136,2486.9,2486.7,0.40219]
[1725177141364,0.00603136,2486.9,2486.5,3.81970315]
[1725177141365,0.40820136,2486.9,2486.5,3.81970315]
[1725177141557,0.79920136,2486.9,2486.6,0.38527421]
[1725177141863,0.39703136,2486.9,2486.6,0.4022]
[1725177142956,0.40218,2486.8,2486.5,3.2078]
[1725177143266,0.40218,2486.8,2486.6,0.38528425]
[1725177143465,0.40219,2486.8,2486.5,3.2078]
[1725177144359,0.39703136,2486.9,2486.6,0.40221]
[1725177144360,0.79920136,2486.9,2486.6,0.40221]
[1725177144666,0.79919136,2486.9,2486.6,0.4022]
[1725177145058,0.39703136,2486.9,2486.5,3.2078]
[1725177145365,0.00603136,2486.9,2486.6,0.78749504]
[1725177145666,0.00603136,2486.9,2486.7,0.38528758]
[1725177145861,0.00603136,2486.9,2486.7,0.40219]
[1725177146169,0.00603136,2486.9,2486.8,0.3546]
[1725177146668,0.40819136,2486.9,2486.6,0.4022]
[1725177146965,0.40819136,2486.9,2486.5,3.99682]
[1725177147168,0.40819136,2486.9,2486.5,3.5946]
[1725177147169,4.92048945,2486.8,2486.5,3.5946]
[1725177147469,5.70687945,2486.8,2486.5,3.5946]
[1725177147673,0.4022,2486.7,2486.5,3.5946]
[1725177148470,5.70687945,2486.8,2486.5,3.5946]
[1725177148668,5.70687945,2486.8,2486.6,0.38543718]
[1725177148860,5.70687945,2486.8,2486.5,3.5946]
[1725177151266,0.4022,2486.7,2486.5,3.5946]
[1725177151468,0.40221,2486.6,2486.5,3.5946]
[1725177151671,4.59567536,2486.6,2486.5,3.2078]
[1725177154263,5.60120536,2486.6,2486.5,3.2078]
[1725177154465,9.22059536,2486.6,2486.1,3.82015298]
[1725177154671,0.40228,2486.2,2486.1,3.2078]
[1725177154975,0.40228,2486.2,2486.1,3.59342276]
[1725177155970,0.40228,2486.2,2486.1,3.2078]
[1725177156876,0.3839,2486.4,2486.1,3.99575335]
[1725177156877,0.78615,2486.4,2486.1,3.99575335]
[1725177157172,4.39155878,2486.3,2486.1,3.61009]
[1725177157977,4.79381878,2486.3,2486.1,3.61009]
[1725177158176,4.79381878,2486.3,2486.1,3.2078]
[1725177159373,4.79381878,2486.3,2486.1,3.61009]
[1725177159880,4.79381878,2486.3,2486.1,3.2078]
[1725177160072,4.79381878,2486.3,2486.0,0.4023]
[1725177160267,4.79381878,2486.3,2486.2,3.2078]
[1725177160591,4.79381878,2486.3,2486.0,0.4023]
[1725177161071,0.40228,2486.2,2486.1,0.38578615]
[1725177161673,4.39155878,2486.3,2485.9,3.9454]
[1725177161674,0.40231,2486.1,2485.9,3.9454]
[1725177161878,0.40231,2486.1,2486.0,0.38581177]
[1725177162179,4.89907424,2486.1,2486.0,0.38581177]
[1725177162367,8.92147424,2486.1,2486.0,0.38581177]
[1725177164481,8.92147424,2486.1,2485.9,3.2078]
[1725177164671,4.89907424,2486.1,2485.9,3.2078]
[1725177165277,0.40231,2486.0,2485.9,3.2078]
[1725177165581,5.05385922,2486.0,2485.9,3.59364603]
[1725177167568,5.05385922,2486.0,2485.9,3.2078]
[1725177167770,5.05385922,2486.0,2485.9,3.5936462]
[1725177167971,5.05385922,2486.0,2485.9,3.2078]
[1725177170078,0.40234,2485.8,2485.7,0.72843136]
[1725177170379,0.40234,2485.8,2485.7,1.11434056]
[1725177170572,0.40234,2485.8,2485.7,0.72843136]
[1725177171293,0.40234,2485.8,2485.7,0.00603136]
[1725177174179,1.56234,2485.8,2485.7,0.00603136]
[1725177174379,2.5682,2485.8,2485.7,0.00603136]
[1725177174591,6.5914,2485.8,2485.7,0.00603136]
[1725177174779,0.40241,2485.4,2485.3,3.2078]
[1725177180799,5.43163,2485.4,2485.3,3.2078]
[1725177181097,9.79902762,2485.4,2485.3,3.2078]
[1725177183096,0.40244,2485.2,2485.1,0.00603136]
[1725177183790,0.77564,2485.2,2485.1,0.00603136]
[1725177189387,1.78174,2485.2,2485.1,0.00603136]
[1725177189595,5.80574,2485.2,2485.1,0.00603136]
[1725177189790,5.80574,2485.2,2484.8,0.7781]
[1725177189791,0.40252,2484.7,2484.6,3.2078]
[1725177189996,0.40255,2484.6,2484.2,0.3603]
[1725177190187,1.1003,2484.6,2484.4,3.2078]
[1725177190388,1.50284,2484.6,2484.4,3.2078]
[1725177190588,1.11884,2484.6,2484.4,3.2078]
[1725177190891,0.384,2484.9,2484.5,0.3556]
[1725177191096,0.40251,2484.8,2484.6,0.3603]
[1725177191592,4.3344219,2484.7,2484.6,0.3603]
[1725177192197,0.40249,2484.9,2484.6,4.3851]
[1725177192392,0.40249,2484.9,2484.6,0.3603]
[1725177192587,0.7163,2485.0,2484.7,3.2078]
[1725177192792,3.18244,2485.2,2484.8,0.4025]
[1725177192986,0.40246,2485.1,2484.9,0.3629]
[1725177193186,4.96918459,2485.1,2484.9,0.3629]
[1725177193401,4.96918459,2485.1,2485.0,3.61027]
[1725177193402,4.56672459,2485.1,2485.0,3.61027]
[1725177193598,1.0795,2485.3,2485.0,3.9461]
[1725177193599,1.48192,2485.3,2485.0,3.9461]
[1725177194099,0.7121,2485.3,2485.0,4.34857]
[1725177194490,3.5564,2485.5,2485.1,0.40245]
[1725177194686,0.7764,2485.5,2485.0,3.9461]
[1725177194886,0.7764,2485.5,2485.1,0.40244]
[1725177195291,0.40241,2485.4,2485.0,4.34856]
[1725177195494,4.63470337,2485.4,2485.0,4.34856]
[1725177197494,0.40242,2485.3,2485.0,4.34856]
[1725177198805,4.23229337,2485.4,2485.1,0.40245]
[1725177198806,4.63471337,2485.4,2485.1,0.40245]
[1725177198992,0.40243,2485.3,2485.0,4.34856]
[1725177199603,4.23229337,2485.4,2485.0,4.34856]
[1725177199604,0.40244,2485.2,2485.0,4.34856]
[1725177199789,0.40244,2485.2,2485.0,3.9461]
[1725177199989,0.40244,2485.2,2485.0,4.34857]
[1725177201190,0.40245,2485.1,2485.0,3.9461]
[1725177201698,0.40245,2485.1,2485.0,7.9701]
[1725177203994,0.40245,2485.2,2485.0,7.9701]
[1725177204195,0.40243,2485.3,2485.1,0.40245]
[1725177204705,4.63470337,2485.4,2485.2,0.40243]
[1725177204906,4.63470337,2485.4,2485.3,3.5801]
[1725177205405,0.4024,2485.5,2485.3,8.00572]
[1725177205609,0.4024,2485.5,2485.4,0.3557]
[1725177208005,0.40241,2485.4,2485.3,3.5801]
[1725177208207,1.56241,2485.4,2485.3,3.2078]
[1725177208403,2.56843,2485.4,2485.3,3.2078]
[1725177208616,6.59163,2485.4,2485.3,3.2078]
[1725177208813,2.56843,2485.4,2485.3,3.2078]
[1725177209213,1.56241,2485.4,2485.3,3.2078]
[1725177210010,1.56241,2485.4,2485.2,0.40243]
[1725177210206,1.56241,2485.4,2485.2,3.61023]
[1725177210409,0.40242,2485.3,2485.2,3.61023]
[1725177210716,0.40242,2485.3,2485.2,3.2078]
[1725177210911,0.40242,2485.3,2485.2,7.2318]
[1725177211419,0.40242,2485.3,2485.2,3.2078]
[1725177211623,0.78122,2485.3,2485.2,3.2078]
[1725177214810,0.78122,2485.3,2484.8,3.5657]
[1725177214811,0.40249,2484.9,2484.8,3.5657]
[1725177215412,0.40249,2484.9,2484.8,3.95171469]
[1725177216314,0.40249,2484.9,2484.8,3.95171374]
[1725177216521,0.40249,2484.9,2484.8,3.2078]
[1725177216722,0.76389,2484.9,2484.8,3.2078]
[1725177217718,10.33282245,2484.9,2484.8,3.2078]
[1725177218121,10.33282245,2484.9,2484.3,0.39603136]
[1725177218122,0.40255,2484.5,2484.4,0.38617569]
[1725177218317,0.40255,2484.5,2484.3,0.39603136]
[1725177218723,0.40257,2484.4,2484.3,0.39603136]
[1725177218924,0.40257,2484.4,2484.3,0.78226991]
[1725177219325,0.78796,2484.5,2484.3,0.39603136]
[1725177219616,0.3854,2484.5,2484.4,0.3862078]
[1725177219817,0.40253,2484.7,2484.3,1.18484795]